Cogmind - Beta 16.1 @@@ ROGUE MODE // 2026.06.18 @ 00:15:02 Player: Lolterzard Result: Destroyed by G-47 Trooper with Particle Gun Performance ------------- Evolutions (2) 1000 Regions Visited (5) 1000 Robots Destroyed (66) 330 Value Destroyed (1879) 1879 Prototype IDs (4) 80 Alien Tech Used (0) 0 Bonus (0) 0 TOTAL SCORE: 4289 Bonus ------- None Cogmind --------- Core Integrity 0/550 Matter 176/300 Energy 100/100 System Corruption 0% Temperature Cool (9) Movement Core (1500) Ox29 Location -8/Materials Parts ------- > --- POWER (1) -------- (None) > --- PROPULSION (5) --- (None) > --- UTILITY (3) ------ Huge Storage Unit Improved Power Shielding Hardened Light Armor Plating > --- WEAPON (2) ------- Autogun > --- INVENTORY (25) --- Ion Engine Ion Engine Improved Ion Engine Large Storage Unit High-capacity Storage Unit Light Armor Plating Hardened Light Armor Plating Heavy EM Pulse Gun Heavy EM Pulse Gun Medium Laser Advanced Beam Cannon Advanced Beam Cannon Advanced Beam Cannon Ion Cannon Ion Cannon Ion Cannon Autogun Grenade Launcher Datajack Peak State ------------ > --- POWER ------------ Nuclear Core > --- PROPULSION ------- Airjet Airjet Airjet Airjet > --- UTILITY ---------- Improved Heat Sink Huge Storage Unit Improved Power Shielding > --- WEAPON ----------- Ion Cannon Autogun > --- INVENTORY -------- Ion Engine Ion Engine Large Storage Unit High-capacity Storage Unit Hardened Light Armor Plating Hardened Light Armor Plating Heavy EM Pulse Gun Heavy EM Pulse Gun Medium Laser Advanced Beam Cannon Advanced Beam Cannon Advanced Beam Cannon Assault Rifle Assault Rifle Heavy Assault Rifle Autogun Grenade Launcher Datajack [Rating: 30] Favorites ----------- Power Ion Engine Engine Ion Engine Power Core Nuclear Core Propulsion Light Treads Treads Light Treads Hover Unit Airjet Utility Heat Sink Device Heat Sink Storage Large Storage Unit Protection Improved Power Shielding Weapon Advanced Beam Cannon Energy Gun Medium Laser Energy Cannon Advanced Beam Cannon Ballistic Gun Autogun Launcher Grenade Launcher Build | -11 -10 -10 -10 -9 -8 ------- Run | Yrd Mat Min Exi Min Mat Slots Evolved 4 | . . . . . 4 Power . | . . . . . . Propulsion 3 | . . . . . 3 Utility 1 | . . . . . 1 Weapon . | . . . . . . Parts Attached 41 | 6 8 . . . 27 Power 3 | 1 . . . . 2 Engine 2 | 1 . . . . 1 Core 1 | . . . . . 1 Reactor . | . . . . . . Propulsion 12 | 2 2 . . . 8 Treads 8 | 2 2 . . . 4 Leg . | . . . . . . Wheel . | . . . . . . Hover 4 | . . . . . 4 Flight . | . . . . . . Utility 10 | 1 2 . . . 7 Device 2 | . 1 . . . 1 Storage 4 | 1 1 . . . 2 Processor . | . . . . . . Hackware . | . . . . . . Protection 4 | . . . . . 4 Artifact . | . . . . . . Weapon 16 | 2 4 . . . 10 Energy Gun 1 | 1 . . . . . Energy Cannon 3 | . 2 . . . 1 Ballistic Gun 11 | 1 1 . . . 9 Ballistic Cannon . | . . . . . . Launcher 1 | . 1 . . . . Special Weapon . | . . . . . . Impact Weapon . | . . . . . . Slashing Weapon . | . . . . . . Piercing Weapon . | . . . . . . Special Melee Weapon . | . . . . . . Unidentified Prototypes 2 | . 1 . . . 1 Parts Lost 24 | . . . . . 24 Power 2 | . . . . . 2 Propulsion 10 | . . . . . 10 Utility 4 | . . . . . 4 Weapon 8 | . . . . . 8 Highest Loss Streak 10 | . . . . . 10 To Critical Strikes 1 | . . . . . 1 Average Backups 14 | 5 11 15 15 14 17 Power 1 | . 1 1 1 1 2 Propulsion 1 | 3 1 3 3 2 . Utility . | . . . . . 2 Weapon 9 | . 8 10 10 10 11 Tool/Special . | . . . . . . Unused Backups 23 | . 9 . . 1 13 Power 3 | . 1 . . . 2 Propulsion 9 | . 6 . . 1 2 Utility 2 | . . . . . 2 Weapon 8 | . 2 . . . 6 Tool/Special 1 | . . . . . 1 Average Slot Usage (%) 89 | . 97 100 100 100 71 Engine 9 | . 14 14 14 14 1 Core 2 | . . . . . 7 Treads 20 | . 28 28 28 28 6 Hover 4 | . . . . . 12 Device 11 | . 11 14 14 14 7 Storage 12 | . 14 14 14 14 9 Protection 3 | . . . . . 9 Energy Cannon 10 | . 12 14 14 14 3 Ballistic Gun 13 | . 13 14 14 14 12 Peak Build Rating 30 | 6 12 12 12 12 30 Average Rating 14 | 5 10 12 12 12 20 On Entrance 9 | . 6 12 12 12 12 Avg Prop Armor Cover (%) 15 | 24 . . . . 7 Naked Turns . | . . . . . . Heaviest Build 99 | 14 33 33 33 33 99 Greatest Support 60 | 40 40 40 40 40 60 Greatest Overweight (x) 32 | 4 1 . . . 32 Average Overweight (x) . | . . . . . 2 Largest Inventory Capacity 25 | 8 15 15 15 15 25 Average Capacity 16 | 7 13 15 15 15 22 Most Carried 23 | 8 15 15 15 15 23 Average Carried 14 | 5 11 15 15 14 17 Final Capacity 25 | 8 15 15 15 15 25 Final Carried 19 | 8 15 15 15 15 19 Class Distribution -------------------- 93% | Mutant 6% | Scavenger-Mutant Dominant Class ---------------- Mutant | -10/Materials Mutant | -10/Mines Mutant | -10/Exiles Mutant | -9/Mines Mutant | -8/Materials Resources | -11 -10 -10 -10 -9 -8 ----------- Run | Yrd Mat Min Exi Min Mat Matter Collected 1506 | 290 237 16 . 68 895 Remotely . | . . . . . . Salvage Created 2407 | 146 550 39 . 262 1410 Parts 141 | 8 35 2 . 12 84 Haulers Intercepted 3 | . . . . . 3 Recyclers Shooed 4 | . 1 . . 2 1 Parts Field Recycled . | . . . . . . Retrieved Matter . | . . . . . . Parts Self-Destructed . | . . . . . . Prevented . | . . . . . . Parts Restored . | . . . . . . Kills | -11 -10 -10 -10 -9 -8 ------- Run | Yrd Mat Min Exi Min Mat Combat Hostiles Destroyed 43 | . 12 2 . 6 23 Guns 25 | . 7 . . 1 17 Cannons 16 | . 4 2 . 4 6 Classes Destroyed 13 | 3 4 . . 2 4 Worker 8 | 2 . . . 1 5 Builder 2 | . . . . . 2 Tunneler 2 | 2 . . . . . Hauler 3 | . . . . . 3 Recycler 5 | 1 2 . . 1 1 Watcher 4 | . 3 . . . 1 Swarmer 8 | . 6 . . . 2 Grunt 21 | . 5 2 . 3 11 Sentry 7 | . . . . . 7 Demolisher 2 | . . . . 2 . Hunter 3 | . . . . . 3 Subdweller 1 | . 1 . . . . Assembled 1 | . . . . 1 . Best Kill Streak 5 | 2 2 2 . 4 5 Combat Bots Only 3 | . 2 2 . 3 3 Max Kills in Single Turn 2 | 1 1 1 . 2 2 Gunslinging . | . . . . . . Exploded . | . . . . . . Melee . | . . . . . . Uniques/NPCs Destroyed . | . . . . . . Combat | -11 -10 -10 -10 -9 -8 -------- Run | Yrd Mat Min Exi Min Mat Hostile Shots Fired 369 | . 60 6 . 15 288 Missed 88 | . 17 3 . 3 65 Hits 281 | . 43 3 . 12 223 Melee 1 | . . . . 1 . Projectile 280 | . 43 3 . 11 223 AOE 6 | . . . . 6 . Critical Strikes 11 | . 2 . . . 9 Damage Taken 4009 | . 444 41 . 315 3209 Core 672 | . 50 . . 65 557 Absorbed by Shields . | . . . . . . Redirected to Shielding 99 | . . . . . 99 Core Remaining (%) 77 | 100 . . . 54 . Volleys Fired 214 | 10 41 4 . 17 142 Largest 2 | 2 2 2 . 2 2 Hottest 128 | 70 98 91 . 91 128 Shots Fired 399 | 20 82 8 . 34 255 Gun 279 | 20 49 4 . 17 189 Cannon 113 | . 31 4 . 17 61 Launcher 7 | . 2 . . . 5 Special . | . . . . . . Kinetic 259 | 10 39 4 . 17 189 Thermal 133 | 10 41 4 . 17 61 Explosive 7 | . 2 . . . 5 Electromagnetic . | . . . . . . Robot Hit Streak 12 | 6 7 2 . 7 12 Robot Miss Streak 6 | 1 4 2 . 2 6 Penetration Max . | . . . . . . Secondary Targets 2 | . 1 . . . 1 Max Gunslinging Chain 1 | . 1 . . . 1 Shots Hit Robots 249 | 13 44 3 . 21 168 Core Hits 109 | 6 20 3 . 12 68 Critical Kills 2 | . 1 . . 1 . Critical Parts Destroyed . | . . . . . . Critical Strikes 3 | 1 1 . . 1 . Burn 1 | 1 . . . . . Meltdown 2 | . 1 . . 1 . Melee Attacks . | . . . . . . Impact . | . . . . . . Slashing . | . . . . . . Piercing . | . . . . . . Sneak Attacks . | . . . . . . Combat Hostiles . | . . . . . . Follow-up Attacks . | . . . . . . Damage Inflicted 4678 | 161 737 256 . 422 3102 Guns 2665 | 161 353 . . 145 2006 Cannons 1481 | . 344 60 . 268 809 Explosions 519 | . 36 196 . . 287 Melee . | . . . . . . Ramming 13 | . 4 . . 9 . Kinetic 2489 | 98 240 . . 145 2006 Thermal 1853 | 63 457 256 . 268 809 Explosive 323 | . 36 . . . 287 Electromagnetic . | . . . . . . Impact . | . . . . . . Slashing . | . . . . . . Piercing . | . . . . . . Highest Corruption . | . . . . . . Average Corruption . | . . . . . . Corruption Purged . | . . . . . . Corruption Blocked . | . . . . . . Overload Shots . | . . . . . . Overflow Damage 99 | . 14 5 . . 80 Projectiles 22 | . 14 . . . 8 Explosions 77 | . . 5 . . 72 Melee . | . . . . . . Knockbacks . | . . . . . . Impact . | . . . . . . Kinetic . | . . . . . . Secondary . | . . . . . . Self-Inflicted Damage . | . . . . . . Shots . | . . . . . . Rammed 4 | . 1 . . 3 . Targets Rammed 4 | . 1 . . 3 . Kicked . | . . . . . . Crushed . | . . . . . . Highest Temperature 496 | 18 84 60 . 60 496 Average Temperature 106 | 7 32 28 . 27 156 Received Heat Transfer 1572 | . 132 24 . 30 1386 Effects 12 | . . . . . 12 Shutdowns 2 | . . . . . 2 Energy Bleed 2 | . . . . . 2 Interference 1 | . . . . . 1 Matter Decay 2 | . . . . . 2 Short Circuit 3 | . . . . . 3 Damage (major) 2 | . . . . . 2 Siege Activations . | . . . . . . Martial Activations . | . . . . . . Shielding Activations . | . . . . . . Robots Disrupted . | . . . . . . Combat Hostiles . | . . . . . . Robots Corrupted . | . . . . . . Combat Hostiles . | . . . . . . Parts Fried . | . . . . . . Impact Corruptions . | . . . . . . Robots Melted 2 | . 1 . . 1 . Combat Hostiles 2 | . 1 . . 1 . Parts Melted 4 | . 1 . . 3 . Heat Transferred 3519 | 259 962 411 . 481 1406 Parts Sabotaged . | . . . . . . Parts Stolen . | . . . . . . Parts Stripped . | . . . . . . Power Chain Reactions . | . . . . . . Alert | -11 -10 -10 -10 -9 -8 ------- Run | Yrd Mat Min Exi Min Mat Maximum Alert Level . | . . . . . . Low Security (%) 100 | 100 100 100 . 100 100 Level 1 . | . . . . . . Level 2 . | . . . . . . Level 3 . | . . . . . . Level 4 . | . . . . . . Level 5 . | . . . . . . High Security . | . . . . . . Max Security . | . . . . . . Peak Influence 146 | 5 146 116 . 65 119 Initial 8 | . 3 8 . . . Average 29 | . 36 60 . 8 36 Influence Increases 1566 | 25 431 126 . 160 824 Destroy 0b10 Robot/C 820 | . 220 40 . 100 460 Destroy 0b10 Robot/NC 120 | 25 25 . . 10 60 Destroy Leader 234 | . 46 10 . 20 158 Successful Hack 30 | . 30 . . . . Disable Machine 195 | . 45 60 . . 90 Destroy Structure 47 | . 5 16 . . 26 Partial Spotted 15 | . . . . . 15 Lose Combat Pursuer 105 | . 60 . . 30 15 Influence Decreases 1459 | 20 413 103 46 160 717 Entered New Map 63 | . 2 15 46 . . Time Decay 1076 | 20 312 88 . 160 496 Lost Part 221 | . . . . . 221 Purge Threat 99 | . 99 . . . . Squads Dispatched 5 | . 2 . . . 3 Investigation 3 | . 1 . . . 2 Extermination . | . . . . . . Reinforcement 2 | . 1 . . . 1 Assault . | . . . . . . Garrison . | . . . . . . Intercept . | . . . . . . Searches Triggered . | . . . . . . Construction Impeded . | . . . . . . Haulers Reinforced . | . . . . . . Active Scanning Responses . | . . . . . . Cargo Convoy Interrupts . | . . . . . . Stealth | -11 -10 -10 -10 -9 -8 --------- Run | Yrd Mat Min Exi Min Mat Distress Signals 4 | . . . . . 4 Communications Jammed . | . . . . . . Distress Signals . | . . . . . . Times Spotted 67 | . 21 2 . 5 39 Peak Tracking Total 6 | . 4 2 . 2 6 Tactical Retreats 6 | . 4 . . 1 1 Traps | -11 -10 -10 -10 -9 -8 ------- Run | Yrd Mat Min Exi Min Mat Traps Triggered 1 | . . . . . 1 Indirectly . | . . . . . . Trap Hack Attempts . | . . . . . . Triggered . | . . . . . . Disarmed . | . . . . . . Reprogrammed . | . . . . . . Reused . | . . . . . . Traps Extracted . | . . . . . . Installed . | . . . . . . Triggered . | . . . . . . Machines | -11 -10 -10 -10 -9 -8 ---------- Run | Yrd Mat Min Exi Min Mat Machines Disabled 13 | . 3 4 . . 6 Max in Single Turn 4 | . 1 4 . . 1 Machines Repaired . | . . . . . . Machines Dismantled . | . . . . . . Machines Sabotaged . | . . . . . . Overloaded Fab Kills . | . . . . . . Hacking | -11 -10 -10 -10 -9 -8 --------- Run | Yrd Mat Min Exi Min Mat Machines Accessed 15 | . 6 . 4 . 5 Terminals 9 | . 5 . . . 4 Fabricators . | . . . . . . Repair Stations 1 | . 1 . . . . Recycling Units . | . . . . . . Scanalyzers 1 | . . . . . 1 Garrison Access . | . . . . . . Total Hacks 25 | . 11 . 4 . 10 Successful 14 | . 7 . 4 . 3 Failed 11 | . 4 . . . 7 Catastrophic 3 | . . . . . 3 Database Lockouts . | . . . . . . Manual 9 | . 2 . 1 . 6 Terminals 16 | . 9 . . . 7 Fabricators . | . . . . . . Repair Stations 2 | . 2 . . . . Recycling Units . | . . . . . . Scanalyzers 3 | . . . . . 3 Garrison Access . | . . . . . . Terminal Hacks 12 | . 7 . 4 . 1 Record 4 | . . . 4 . . Prototype ID Bank 1 | . 1 . . . . Branch Access Points 1 | . 1 . . . . Emergency Access Points 1 | . . . . . 1 Terminal Index 1 | . 1 . . . . Alert Level 1 | . 1 . . . . Unreport Threat 1 | . 1 . . . . Registered Components 1 | . 1 . . . . Zone Layout 1 | . 1 . . . . Fabricator Hacks . | . . . . . . Repair Station Hacks . | . . . . . . Recycling Unit Hacks . | . . . . . . Scanalyzer 2 | . . . . . 2 Retrieve Study 2 | . . . . . 2 Garrison Access Hacks . | . . . . . . Unauthorized Hacks . | . . . . . . Terminals . | . . . . . . Fabricators . | . . . . . . Repair Stations . | . . . . . . Recycling Units . | . . . . . . Scanalyzers . | . . . . . . Garrison Access . | . . . . . . Data Cores Recovered . | . . . . . . Used . | . . . . . . Hacking Detections 9 | . 5 . . . 4 Full Trace Events 1 | . . . . . 1 Feedback Events . | . . . . . . Feedback Blocked . | . . . . . . Robot Schematics Acquired . | . . . . . . Robots Built . | . . . . . . Authchips . | . . . . . . Time . | . . . . . . Total Robot Build Rating . | . . . . . . Part Schematics Acquired . | . . . . . . Parts Built . | . . . . . . Authchips . | . . . . . . Time . | . . . . . . Total Part Build Rating . | . . . . . . Part Studies Acquired 2 | . . . . . 2 Parts Repaired . | . . . . . . Time . | . . . . . . Parts Recycled . | . . . . . . Recycled Matter . | . . . . . . Retrieved Matter . | . . . . . . Retrieved Components . | . . . . . . Parts Scanalyzed . | . . . . . . Part Schematics Acquired . | . . . . . . Parts Damaged . | . . . . . . Bothacking | -11 -10 -10 -10 -9 -8 ------------ Run | Yrd Mat Min Exi Min Mat Used RIF Installer . | . . . . . . Robots Hacked . | . . . . . . Non-combat . | . . . . . . Combat . | . . . . . . Robot Hacks Applied . | . . . . . . Relay Couplers Released . | . . . . . . Fabnet Peak Effective % . | . . . . . . Robots Rewired . | . . . . . . Allies Hacked . | . . . . . . Hacks Repelled . | . . . . . . Allies | -11 -10 -10 -10 -9 -8 -------- Run | Yrd Mat Min Exi Min Mat Total Allies . | . . . . . . Largest Group . | . . . . . . Highest-Rated Group . | . . . . . . Highest-Rated Ally . | . . . . . . Total Orders . | . . . . . . Ally Attacks . | . . . . . . Total Damage . | . . . . . . Kills . | . . . . . . Allies Corrupted . | . . . . . . Allies Melted . | . . . . . . Intel | -11 -10 -10 -10 -9 -8 ------- Run | Yrd Mat Min Exi Min Mat Active Infowar (turns) . | . . . . . . Robot Analysis Total . | . . . . . . Derelict Logs Recovered 3 | . . 1 . 2 . Drone Launches . | . . . . . . Drone Recoveries . | . . . . . . Exploration | -11 -10 -10 -10 -9 -8 ------------- Run | Yrd Mat Min Exi Min Mat Turns Passed 6214 | 209 1425 218 1167 1139 2056 Spaces Moved 2868 | 110 682 130 730 620 596 Core 58 | 33 . . . . 25 Treads 2486 | 77 682 130 730 620 247 Legs . | . . . . . . Wheels . | . . . . . . Hover 324 | . . . . . 324 Flight . | . . . . . . Fastest Speed 50 | 50 160 160 160 160 108 Average Speed 179 | 148 160 160 160 160 256 Slowest Speed 1650 | 250 240 160 160 160 1650 Overloaded Moves . | . . . . . . Propulsion Burnouts . | . . . . . . Robots Hopped . | . . . . . . Potential Cave-ins . | . . . . . . Cave-ins Triggered . | . . . . . . Exploration Rate (%) 60 | 5 90 27 93 92 53 Regions Visited 5 Branch Regions 3 Pre-discovered Areas 2 | . . 1 . 1 . Known Exits Taken 1 | . 1 . . . . Unknown Exits Taken 4 | 1 . 1 1 1 . Scrap Searched . | . . . . . . Spaces Dug . | . . . . . . Terrain Destroyed 46 | . 1 16 . 2 27 Melee . | . . . . . . Projectile 5 | . . . . 2 3 AOE 41 | . 1 16 . . 24 Terrain Rammed . | . . . . . . Walls Destroyed . | . . . . . . Machines Disabled . | . . . . . . Actions | -11 -10 -10 -10 -9 -8 --------- Run | Yrd Mat Min Exi Min Mat Total 3553 | 133 939 133 729 735 884 Wait 366 | . 179 . . 94 93 Move 2863 | 109 681 129 729 619 596 Hop . | . . . . . . Pick Up 40 | 8 16 . . 1 15 Fast Attach 17 | 6 1 . . . 10 Attach 12 | . . . . . 12 Detach . | . . . . . . Swap 20 | . 8 . . . 12 Drop 17 | . 12 . . 1 4 Fire 214 | 10 41 4 . 17 142 Melee . | . . . . . . Ram . | . . . . . . Kick . | . . . . . . Crush 4 | . 1 . . 3 . Escape Stasis . | . . . . . . Rewire . | . . . . . . Trap . | . . . . . . Miscellaneous . | . . . . . . Route ------- -11/Scrapyard -10/Materials (discovered 4 exits: [*Mat x3] / *Min) -10/Mines -10/Exiles (discovered 2 exits: [*Min x2]) -9/Mines (discovered 2 exits: *Mat x2) -8/Materials (discovered 2 exits: [*Fac x2]) History --------- Turn | Location | Event 25 | -11/Scrapyard | Discovered new exit (range 16) 210 | -11/Scrapyard | Entered Materials 305 | -10/Materials | Build established: Mutant 573 | -10/Materials | Discovered new exit (range 12) 654 | -10/Materials | Identified exit to Mines 799 | -10/Materials | Discovered new exit (range 4) 1129 | -10/Materials | Discovered new exit (range 3) 1310 | -10/Materials | Derelicts attacked the area 1584 | -10/Materials | Discovered new exit (range 10) 1635 | -10/Materials | Entered Mines 1795 | -10/Mines | Found a hidden stash of uninstalled traps 1847 | -10/Mines | Deemed a non-threat by the Exiles lab entrance 1847 | -10/Mines | Discovered new exit (range 5) 1853 | -10/Mines | Entered Exiles 1853 | -10/Exiles | Found Exiles lab abandoned 2625 | -10/Exiles | Discovered new exit (range 14) 2810 | -10/Exiles | Discovered new exit (range 14) 3020 | -10/Exiles | Entered Mines 3118 | -9/Mines | Found a damaged Exp. Sensor Array with a note attached 3272 | -9/Mines | Assembled infested the area 3490 | -9/Mines | Discovered new exit (range 8) 3623 | -9/Mines | Discovered new exit (range 5) 3730 | -9/Mines | Learned location of Zion (-6) 4159 | -9/Mines | Entered Materials 4159 | -8/Materials | Evolved 4 slots: Propulsion x3, Utility x1 4495 | -8/Materials | Discovered new exit (range 3) 4597 | -8/Materials | Build established: Scavenger-Mutant 4808 | -8/Materials | Lost 10 parts (1p5n3u1w) 4995 | -8/Materials | Build established: Mutant 5298 | -8/Materials | Core integrity fell below 50% 5350 | -8/Materials | Lost 3 parts (2n1w) 5890 | -8/Materials | Discovered new exit (range 11) 6094 | -8/Materials | Lost 3 parts (2n1w) 6142 | -8/Materials | Core integrity fell below 20% 6180 | -8/Materials | Lost 4 parts (1n1u2w) 6215 | -8/Materials | Destroyed by G-47 Trooper with Particle Gun Last Messages --------------- 06147_ R-06 Scavenger collects Med. Matter Pod. 06149_ Assault Rifle destroyed. 06150_ R-06 Scavenger collects Heat Sink. 06151_ R-06 Scavenger destroyed. 06152_ S-10 Pest destroyed. 06156_ G-50 Soldier destroyed. 06162_ K-01 Serf collects debris. 06167_ Purification Channel disabled. 06168_ K-01 Serf collects debris. 06176_ Destroyed Tractor Beam. 06177_ K-01 Serf collects debris. 06181_ S-10 Pest destroyed. 06183_ K-01 Serf collects debris. 06183_ Hpw. Shotgun destroyed. 06184_ G-47 Trooper destroyed. 06184_ K-01 Serf collects debris. 06187_ K-01 Serf sends out distress signal. 06189_ K-01 Serf collects debris. 06207_ Nuclear Core destroyed. 06208_ Acquired 24 matter. Map ----- +----------------------------------------------------+ | ???????????????????????????????? | | ???????????????????????????????? | | ???????????????????????????????? | | ???????????????????????????????? | | ???????????????????????????????? | | ???????????????????????????????? | | ???????????????????????????????? | | ???????????????????????????????? | | ???????????????????????????????? | | ???????????????????????????????? | | ?????????????????????? ???????? | | ?????????????????????? ???????? | | ?????????????????????? ???????? | | ?????????????????????# ######## | | ?????????????????????# # # | | ????????????????##??## + ! # | | ????????????????# ^ # ]# | | ????????????????#^ ^ # k" # | | ????????????????#^ """ # """ # | | ????????????????# "T" # "" k # | | ????????????????? # """ # | | ??????????????????? +*!"" # | | ???????????????????? #%""" # | | ?????????????????????#%[#%""" # | | ?????????????????????#%!#=% " # | | ?????????????????????#=!g@! # | | ?????????????????????# ##*%%! # | | ?????????????????????# #####*### | | ?????????????????????# #???###?? | | ?????????????????????# #???????? | | ?????????????????????# #???????? | | ???????????????#######/#???????? | | ???????????????# #???????? | | ?????????####??# """#???????? | | ??????# # Y"#???????? | | ??????# """# """#???????? | | ??????? """#[ #???????? | | ??????# """# = #???????? | | ??????# # #???????? | | ??????# " " #""" #???????? | | ??????# "G" #""" #???????? | | ??????? """ #""" #???????? | | ????????? ?# #???????? | | ??????#####+######+#####???????? | | +###### #????????? | | # < #????????? | | # #????????? | | # ############????????? | | # # #?????????? | | # # #?????????? | +----------------------------------------------------+ Best States ------------- Heat Dissipation 45 Energy Generation 14 Energy Capacity 280 Matter Stores 300 Matter Capacity 300 Sight Range 16 Terrain Scan Density 10 Armor Coverage 300 Power Shielding 66 Evasion (%) 50 Recoil Reduction 3 Item Schematics ----------------- None Robot Schematics ------------------ None Fabricated ------------ Nothing Repaired ---------- Nothing Studied --------- Airjet | -8/Materials | Hacked Hvy. Assault Rifle | -8/Materials | Hacked Alien Tech Used ----------------- None Achievements -------------- I Survived The Infestation Challenges ------------ None Game ------ Seed BlanketStormRouter Manual? 0 Play Time 00:27:08 Cumulative 34.5 hours Start 2026.06.17 @ 23:50:05 End 2026.06.18 @ 00:15:02 Sessions 1 Manual Loads 0 Difficulty Rogue Special Mode None Game No. 62 Rogue 62 Adventurer 0 Explorer 0 Win Type - Total 0 Types 0/0/0/0/0/0/0/0/0/0 Lore% 21 Gallery% 19 Achievement% 18 Wizard Run 0 Options --------- Layout 0 ASCII 0 Keyboard 0 Movement Mouse Keybinds 0 Fullscreen 2 Font 24/Smallcaps Map View 76x50 Zoom Use 0% Tactical HUD 1 Map Filters NONE Filters NONE Steam 1 RUN: 5c307e12-0d82-4233-8402-785d1e450fe1